Cogmind - Beta 12 @@@ ROGUE MODE // 2024.01.30 @ 15:57:39 Player: %41THX3142 Result: Destroyed by H-61 Shepherd with Heavy Assault Cannon Performance ------------- Evolutions (3) 1500 Regions Visited (6) 1200 Robots Destroyed (59) 295 Value Destroyed (1814) 1814 Prototype IDs (28) 560 Alien Tech Used (0) 0 Bonus (407) 407 TOTAL SCORE: 5776 Bonus ------- High Alert Combat Kills 187 Follower Combat Kills 60 Aligned with FarCom 300 Friendly Fire -140 Cogmind --------- Core Integrity 0/700 Matter 68/300 Energy 99/100 System Corruption 14% Temperature Cool (0) Movement Core (50) Location -7/Factory Parts ------- > --- POWER (2) -------- (None) > --- PROPULSION (4) --- (None) > --- UTILITY (5) ------ System Shield > --- WEAPON (2) ------- (None) > --- INVENTORY (5) ---- Reaction Control System System Restoration Module Heavy Ion Cannon Remote Datajack Field Lobotomy Kit (5) Peak State ------------ > --- POWER ------------ Reinforced Deuterium Engine Micro Nuclear Core > --- PROPULSION ------- Aerolev Unit Aerolev Unit Aerolev Unit Combat Airjet > --- UTILITY ---------- Cryofiber Web Medium Storage Unit Advanced Visual Processing Unit Utility Shielding Improved Medium Armor Plating > --- WEAPON ----------- Heavy Ion Cannon Heavy Ion Cannon > --- INVENTORY -------- Micro Nuclear Core Gravmag System Large Battery Weight Redist. System Reaction Control System Heavy Ion Cannon Advanced Assault Cannon Remote Datajack Field Lobotomy Kit Great Maul [Rating: 48] Favorites ----------- Power Ion Engine Engine Ion Engine Power Core Micro Nuclear Core Propulsion Combat Airjet Leg Improved Titanium Leg Wheel Wheel Hover Unit Combat Airjet Flight Unit Xenon Bombardment Thruster Utility Medium Storage Unit Device Weight Redist. System Storage Medium Storage Unit Processor Signal Interpreter Hackware System Shield Protection Utility Shielding Weapon Heavy Ion Cannon Energy Gun Heavy EM Pulse Gun Energy Cannon Heavy Ion Cannon Ballistic Gun Light Assault Rifle Ballistic Cannon Light Cannon Launcher Rocket Launcher Special Weapon Field Lobotomy Kit Impact Weapon Heavy Mace Build | -11 -10 -10 -10 -9 -8 -7 ------- Run | Jun Mat Min Exi Min Mat Fac Slots Evolved 6 | . . . . . 4 2 Power 1 | . . . . . . 1 Propulsion 2 | . . . . . 2 . Utility 3 | . . . . . 2 1 Weapon . | . . . . . . . Parts Attached 126 | 7 5 3 3 1 72 35 Power 9 | 1 . . . . 4 4 Engine 5 | 1 . . . . 3 1 Core 4 | . . . . . 1 3 Reactor . | . . . . . . . Propulsion 29 | 2 1 2 1 . 19 4 Treads . | . . . . . . . Leg 5 | . . . . . 5 . Wheel 7 | 2 1 . . . 4 . Hover 13 | . . 2 1 . 6 4 Flight 4 | . . . . . 4 . Utility 28 | 2 2 . . . 11 13 Device 11 | . . . . . 3 8 Storage 7 | 2 1 . . . 2 2 Processor 2 | . 1 . . . 1 . Hackware 1 | . . . . . . 1 Protection 7 | . . . . . 5 2 Artifact . | . . . . . . . Weapon 60 | 2 2 1 2 1 38 14 Energy Gun 10 | . 2 . 1 . 5 2 Energy Cannon 15 | . . . . . 9 6 Ballistic Gun 5 | 2 . . . . 3 . Ballistic Cannon 10 | . . 1 . . 8 1 Launcher 4 | . . . . 1 2 1 Special Weapon 1 | . . . 1 . . . Impact Weapon 15 | . . . . . 11 4 Slashing Weapon . | . . . . . . . Piercing Weapon . | . . . . . . . Special Melee Weapon . | . . . . . . . Unidentified Prototypes 6 | . . . 1 . 5 . Parts Lost 16 | . . 1 . . 3 12 Power 2 | . . . . . . 2 Propulsion 5 | . . . . . . 5 Utility 6 | . . . . . 3 3 Weapon 3 | . . 1 . . . 2 Highest Loss Streak 3 | . . 1 . . 2 3 To Critical Strikes . | . . . . . . . Average Slot Usage (%) 90 | . 98 100 100 100 98 77 Engine 8 | . 14 14 14 14 6 4 Core 1 | . . . . . 2 3 Leg 1 | . . . . . 5 . Wheel 4 | . 28 10 . . 9 . Hover 21 | . . 17 28 28 19 23 Device 4 | . . . . . 8 6 Storage 9 | . 14 14 14 14 9 6 Processor 9 | . 13 14 14 14 8 6 Protection 7 | . . . . . 8 12 Energy Gun 4 | . 4 15 14 5 2 1 Energy Cannon 3 | . . . . . 4 6 Ballistic Gun 2 | . 22 . . . 2 . Ballistic Cannon 6 | . . 12 14 14 5 3 Launcher 1 | . . . . 8 . . Impact Weapon 1 | . . . . . 3 1 Naked Turns 198 | . . . . . . 198 Heaviest Build 56 | 17 21 21 21 22 43 56 Greatest Support 59 | 26 26 20 24 24 59 37 Greatest Overweight (x) 6 | 1 1 1 1 . 6 6 Average Overweight (x) . | . . 1 . . . . Largest Inventory Capacity 25 | 8 10 10 10 10 10 25 Average Capacity 9 | 7 9 10 10 10 10 9 Most Carried 10 | 6 10 10 10 10 10 10 Average Carried 9 | 2 8 9 9 9 9 9 Final Capacity 10 | 8 10 10 10 10 10 5 Final Carried 10 | 6 10 10 10 10 10 5 Class Distribution -------------------- 82% | Mutant 17% | Scavenger-Mutant Dominant Class ---------------- Mutant | -10/Materials Mutant | -10/Mines Mutant | -10/Exiles Mutant | -9/Mines Scavenger-Mutant | -8/Materials Mutant | -7/Factory Resources | -11 -10 -10 -10 -9 -8 -7 ----------- Run | Jun Mat Min Exi Min Mat Fac Matter Collected 2293 | 306 78 70 . 222 1151 466 Remotely . | . . . . . . . Salvage Created 1862 | 150 234 24 . 293 817 344 Parts 115 | 8 17 . . 26 48 16 Haulers Intercepted 6 | . 1 . . . 4 1 Recyclers Shooed 4 | . 1 . . . 3 . Parts Field Recycled . | . . . . . . . Retrieved Matter . | . . . . . . . Parts Self-Destructed . | . . . . . . . Prevented . | . . . . . . . Kills | -11 -10 -10 -10 -9 -8 -7 ------- Run | Jun Mat Min Exi Min Mat Fac Combat Hostiles Destroyed 40 | . . 1 . 12 19 8 Melee 1 | . . . . . 1 . Guns 7 | . . 1 . 3 1 2 Cannons 15 | . . . . 2 11 2 AOE 12 | . . . . 7 5 . Classes Destroyed 15 | 3 3 1 . 4 3 1 Worker 3 | 2 . . . 1 . . Builder 1 | . . . . . 1 . Tunneler 1 | 1 . . . . . . Hauler 6 | . 1 . . . 4 1 Recycler 4 | 1 2 . . . 1 . Mechanic 1 | . 1 . . . . . Watcher 3 | . 2 . . . . 1 Swarmer 13 | . . . . 6 7 . Grunt 9 | . . . . 3 2 4 Brawler 2 | . . . . 1 1 . Duelist 2 | . . . . . 2 . Sentry 8 | . . . . 2 6 . Hunter 2 | . . . . . 1 1 Programmer 3 | . . . . . . 3 Assembled 1 | . . 1 . . . . Thug 1 | . . . . 1 . . Best Kill Streak 5 | 3 2 1 . 5 4 3 Combat Bots Only 4 | . . 1 . 4 3 3 Max Kills in Single Turn 5 | 1 2 1 . 5 1 1 Gunslinging . | . . . . . . . Exploded 4 | . . . . 4 1 . Melee 1 | . . . . . 1 . Uniques/NPCs Destroyed . | . . . . . . . Combat | -11 -10 -10 -10 -9 -8 -7 -------- Run | Jun Mat Min Exi Min Mat Fac Damage Taken 4256 | . . 188 . 140 1596 2332 Core 1146 | . . 45 . 41 345 715 Absorbed by Shields 23 | . . . . . . 23 Redirected to Shielding 120 | . . . . . 83 37 Regen/Repaired (Parts) 25 | . . . . . . 25 Core Remaining (%) 67 | 100 . . . 65 37 . Volleys Fired 184 | 18 15 13 . 24 82 32 Largest 2 | 2 2 2 . 2 2 2 Hottest 130 | 40 90 90 . 80 120 130 Shots Fired 322 | 36 30 26 . 43 125 62 Gun 134 | 36 30 16 . 5 26 21 Cannon 165 | . . 10 . 24 90 41 Launcher 23 | . . . . 14 9 . Special . | . . . . . . . Kinetic 208 | 36 28 10 . 24 86 24 Thermal 59 | . . . . . 29 30 Explosive 23 | . . . . 14 9 . Electromagnetic 32 | . 2 16 . 5 1 8 Robot Hit Streak 12 | 11 12 8 . 5 8 8 Robot Miss Streak 4 | 4 2 2 . 4 4 4 Penetration Max . | . . . . . . . Secondary Targets . | . . . . . . . Shots Hit Robots 188 | 23 20 18 . 9 76 42 Core Hits 92 | 7 11 10 . 19 32 13 Critical Kills 1 | 1 . . . . . . Critical Parts Destroyed 4 | . . . . . 2 2 Critical Strikes 14 | 1 . 2 . 1 6 4 Burn 1 | . . . . . . 1 Destroy 1 | 1 . . . . . . Blast 7 | . . 1 . 1 4 1 Corrupt 1 | . . 1 . . . . Smash 4 | . . . . . 2 2 Melee Attacks 114 | . . . . . 73 41 Impact 114 | . . . . . 73 41 Slashing . | . . . . . . . Piercing . | . . . . . . . Sneak Attacks 3 | . . . . . 3 . Combat Hostiles . | . . . . . . . Follow-up Attacks . | . . . . . . . Damage Inflicted 4979 | 192 190 317 . 677 2287 1316 Guns 1137 | 192 190 174 . 56 210 315 Cannons 2178 | . . 143 . 133 1237 665 Explosions 896 | . . . . 488 408 . Melee 731 | . . . . . 416 315 Ramming 37 | . . . . . 16 21 Kinetic 2092 | 192 151 143 . 133 1102 371 Thermal 1116 | . . . . 285 345 486 Explosive 587 | . . . . 203 384 . Electromagnetic 416 | . 39 174 . 56 24 123 Impact 731 | . . . . . 416 315 Slashing . | . . . . . . . Piercing . | . . . . . . . Highest Corruption 16 | . . . . . 16 14 Average Corruption 6 | . . . . . 6 5 Corruption Purged 5 | . . . . . . 5 Corruption Blocked . | . . . . . . . Effects 83 | . . . . . 37 46 Message Errors 18 | . . . . . 8 10 Matter Fused 17 | . . . . . 7 10 Heat Flow Errors 7 | . . . . . 5 2 Energy Discharges 4 | . . . . . 1 3 Parts Rejected 3 | . . . . . 1 2 Parts Fused 1 | . . . . . . 1 Data Loss (minor) 18 | . . . . . 8 10 Data Loss (major) 2 | . . . . . . 2 Misfires 4 | . . . . . 3 1 Alerts 3 | . . . . . . 3 Misdirections 4 | . . . . . 2 2 Weapon Failures 2 | . . . . . 2 . Overload Shots . | . . . . . . . Overflow Damage 353 | . . 1 . 30 141 181 Projectiles 31 | . . 1 . . . 30 Explosions 42 | . . . . 30 12 . Melee 280 | . . . . . 129 151 Knockbacks 17 | . . 4 . 1 7 5 Impact 3 | . . . . . 2 1 Kinetic 11 | . . 3 . 1 4 3 Secondary 3 | . . 1 . . 1 1 Self-Inflicted Damage 156 | . . . . 30 111 15 Shots 3 | . . . . 1 2 . Rammed 3 | . . . . . . 3 Targets Rammed 3 | . . . . . . 3 Kicked . | . . . . . . . Crushed . | . . . . . . . Highest Temperature 498 | . 30 122 . 72 239 498 Average Temperature 121 | . 17 55 . 26 62 229 Received Heat Transfer 705 | . . . . 39 198 468 Effects 12 | . . . . . . 12 Energy Bleed 1 | . . . . . . 1 Interference 2 | . . . . . . 2 Matter Decay 1 | . . . . . . 1 Short Circuit 2 | . . . . . . 2 Damage (minor) 2 | . . . . . . 2 Damage (major) 4 | . . . . . . 4 Siege Activations . | . . . . . . . Robots Corrupted . | . . . . . . . Combat Hostiles . | . . . . . . . Parts Fried 5 | . . . . . 3 2 Impact Corruptions 10 | . . . . . 5 5 Robots Melted 1 | . . . . . . 1 Combat Hostiles 1 | . . . . . . 1 Parts Melted 5 | . . . . 2 3 . Heat Transferred 1732 | . . . . 400 555 777 Parts Sabotaged . | . . . . . . . Parts Stolen . | . . . . . . . Parts Stripped . | . . . . . . . Power Chain Reactions . | . . . . . . . Missiles Intercepted . | . . . . . . . Alert | -11 -10 -10 -10 -9 -8 -7 ------- Run | Jun Mat Min Exi Min Mat Fac Peak Influence 850 | 20 96 37 . 509 850 458 Initial 348 | . 13 37 . . 150 348 Average 273 | 6 48 4 . 231 498 206 Maximum Alert Level 3 | . . . . 2 3 2 Low Security (%) 44 | 100 100 100 . 41 2 57 Level 1 30 | . . . . 46 38 29 Level 2 17 | . . . . 12 33 13 Level 3 7 | . . . . . 24 . Level 4 . | . . . . . . . Level 5 . | . . . . . . . High Security . | . . . . . . . Max Security . | . . . . . . . Squads Dispatched 21 | . . . . 1 7 13 Investigation 5 | . . . . 1 1 3 Extermination 4 | . . . . . . 4 Reinforcement 3 | . . . . . . 3 Assault 3 | . . . . . 3 . Garrison 6 | . . . . . 3 3 Intercept . | . . . . . . . Searches Triggered . | . . . . . . . Construction Impeded . | . . . . . . . Haulers Reinforced 1 | . . . . . . 1 Active Scanning Responses . | . . . . . . . Cargo Convoy Interrupts . | . . . . . . . Stealth | -11 -10 -10 -10 -9 -8 -7 --------- Run | Jun Mat Min Exi Min Mat Fac Distress Signals 5 | . . . . . 4 1 Communications Jammed . | . . . . . . . Distress Signals . | . . . . . . . Times Spotted 101 | . 3 12 . 12 37 37 Peak Tracking Total 12 | . 1 12 . 3 5 8 Tactical Retreats 10 | . . . . 1 3 6 Traps | -11 -10 -10 -10 -9 -8 -7 ------- Run | Jun Mat Min Exi Min Mat Fac Traps Triggered 8 | . . . . . 5 3 Indirectly . | . . . . . . . Trap Hack Attempts . | . . . . . . . Triggered . | . . . . . . . Disarmed . | . . . . . . . Reprogrammed . | . . . . . . . Reused . | . . . . . . . Traps Extracted . | . . . . . . . Installed . | . . . . . . . Triggered . | . . . . . . . Machines | -11 -10 -10 -10 -9 -8 -7 ---------- Run | Jun Mat Min Exi Min Mat Fac Machines Disabled 29 | . . . . 18 10 1 Max in Single Turn 16 | . . . . 16 2 1 Garrison Access 1 | . . . . . 1 . Machines Repaired . | . . . . . . . Machines Sabotaged . | . . . . . . . Overloaded Fab Kills . | . . . . . . . Hacking | -11 -10 -10 -10 -9 -8 -7 --------- Run | Jun Mat Min Exi Min Mat Fac Machines Accessed 20 | . 2 . 2 1 6 9 Terminals 12 | . 1 . . 1 6 4 Fabricators 2 | . . . . . . 2 Repair Stations 2 | . . . . . . 2 Recycling Units 1 | . 1 . . . . . Scanalyzers . | . . . . . . . Garrison Access 1 | . . . . . . 1 Total Hacks 54 | . 10 . 5 3 20 16 Successful 24 | . 5 . 5 2 5 7 Failed 30 | . 5 . . 1 15 9 Catastrophic 11 | . . . . 1 6 4 Database Lockouts . | . . . . . . . Manual 31 | . 6 . 2 3 15 5 Terminals 37 | . 7 . . 3 20 7 Fabricators 3 | . . . . . . 3 Repair Stations 4 | . . . . . . 4 Recycling Units 3 | . 3 . . . . . Scanalyzers . | . . . . . . . Garrison Access 2 | . . . . . . 2 Terminal Hacks 16 | . 3 . 5 2 5 1 Record 4 | . . . 4 . . . Robot Analysis 1 | . . . . . 1 . Level Access Points 2 | . 1 . . . 1 . Branch Access Points 1 | . 1 . . . . . Alert Level 5 | . . . . 1 3 1 Unreport Threat 1 | . . . . 1 . . Zone Layout 1 | . 1 . . . . . EX-Prototype ID Bank 1 | . . . 1 . . . Fabricator Hacks 3 | . . . . . . 3 Network Status 2 | . . . . . . 2 Build 1 | . . . . . . 1 Repair Station Hacks 3 | . . . . . . 3 Scan Component 2 | . . . . . . 2 Repair 1 | . . . . . . 1 Recycling Unit Hacks 2 | . 2 . . . . . Report Inventory 1 | . 1 . . . . . Retrieve Components 1 | . 1 . . . . . Scanalyzer . | . . . . . . . Garrison Access Hacks . | . . . . . . . Unauthorized Hacks . | . . . . . . . Terminals . | . . . . . . . Fabricators . | . . . . . . . Repair Stations . | . . . . . . . Recycling Units . | . . . . . . . Scanalyzers . | . . . . . . . Garrison Access . | . . . . . . . Data Cores Recovered . | . . . . . . . Used . | . . . . . . . Hacking Detections 18 | . 2 . . 1 6 9 Full Trace Events 5 | . . . . 1 1 3 Feedback Events . | . . . . . . . Feedback Blocked . | . . . . . . . Robot Schematics Acquired . | . . . . . . . Robots Built . | . . . . . . . Authchips . | . . . . . . . Time . | . . . . . . . Total Robot Build Rating . | . . . . . . . Part Schematics Acquired . | . . . . . . . Parts Built 1 | . . . . . . 1 Authchips . | . . . . . . . Time 106 | . . . . . . 106 Total Part Build Rating 6 | . . . . . . 6 Parts Repaired 1 | . . . . . . 1 Time 20 | . . . . . . 20 Parts Recycled . | . . . . . . . Recycled Matter . | . . . . . . . Retrieved Matter . | . . . . . . . Retrieved Components 6 | . 6 . . . . . Parts Scanalyzed . | . . . . . . . Part Schematics Acquired . | . . . . . . . Parts Damaged . | . . . . . . . Bothacking | -11 -10 -10 -10 -9 -8 -7 ------------ Run | Jun Mat Min Exi Min Mat Fac Used RIF Installer . | . . . . . . . Robots Hacked . | . . . . . . . Non-combat . | . . . . . . . Combat . | . . . . . . . Robot Hacks Applied . | . . . . . . . Relay Couplers Released 2 | . . . . . 2 . Machine Destruction 2 | . . . . . 2 . Fabnet Peak Effective % . | . . . . . . . Robots Rewired . | . . . . . . . Allies Hacked . | . . . . . . . Hacks Repelled . | . . . . . . . Allies | -11 -10 -10 -10 -9 -8 -7 -------- Run | Jun Mat Min Exi Min Mat Fac Total Allies 3 | . . 2 . 1 . . Largest Group 2 | . . 2 . 1 . . Highest-Rated Group 53 | . . 53 . 31 . . Highest-Rated Ally 31 | . . 31 . 31 . . Total Orders . | . . . . . . . Ally Attacks 31 | . . 14 . 17 . . Total Damage 473 | . . 247 . 226 . . Kills 4 | . . 2 . 2 . . Allies Corrupted . | . . . . . . . Allies Melted . | . . . . . . . Intel | -11 -10 -10 -10 -9 -8 -7 ------- Run | Jun Mat Min Exi Min Mat Fac Robot Analysis Total 1 | . . . . . 1 . Derelict Logs Recovered . | . . . . . . . Drone Launches . | . . . . . . . Drone Recoveries . | . . . . . . . Exploration | -11 -10 -10 -10 -9 -8 -7 ------------- Run | Jun Mat Min Exi Min Mat Fac Turns Passed 6103 | 137 375 178 685 672 1607 2449 Spaces Moved 4629 | 84 372 109 560 634 1006 1864 Core 430 | 1 . . . . 2 427 Treads . | . . . . . . . Legs 197 | . . . . . 197 . Wheels 494 | 83 372 37 . . 2 . Hover 3504 | . . 72 560 634 801 1437 Flight 4 | . . . . . 4 . Fastest Speed 45 | 50 80 95 77 77 45 50 Average Speed 98 | 88 84 118 120 77 99 101 Slowest Speed 350 | 95 95 131 131 77 350 350 Overloaded Moves . | . . . . . . . Propulsion Burnouts . | . . . . . . . Robots Hopped . | . . . . . . . Cave-ins Triggered 3 | . . . . . 2 1 Exploration Rate (%) 53 | 4 45 30 93 95 69 38 Regions Visited 6 Branch Regions 3 Pre-discovered Areas 1 | . . . . 1 . . Known Exits Taken 5 | . 1 1 1 1 1 . Unknown Exits Taken 1 | 1 . . . . . . Scrap Searched 4 | . . . . 4 . . Spaces Dug 80 | . . . . 10 41 29 Terrain Destroyed 335 | . . . . 159 139 37 Melee 70 | . . . . . 41 29 Projectile 31 | . . . . . 23 8 AOE 234 | . . . . 159 75 . Terrain Rammed 2 | . . . . . 1 1 Walls Destroyed . | . . . . . . . Machines Disabled . | . . . . . . . Actions | -11 -10 -10 -10 -9 -8 -7 --------- Run | Jun Mat Min Exi Min Mat Fac Total 5626 | 114 412 131 567 777 1358 2267 Wait 418 | . . 4 . 107 55 252 Move 4621 | 83 371 108 559 633 1004 1863 Hop . | . . . . . . . Pick Up 65 | 5 11 2 2 6 25 14 Fast Attach 47 | 7 3 . . . 24 13 Attach 18 | . 1 1 . . 9 7 Detach 4 | 1 . . . . 3 . Swap 62 | . 1 2 3 1 39 16 Drop 78 | . 10 1 2 6 42 17 Fire 184 | 18 15 13 . 24 82 32 Melee 114 | . . . . . 73 41 Ram 5 | . . . . . 1 4 Kick . | . . . . . . . Crush . | . . . . . . . Escape Stasis 9 | . . . . . 1 8 Rewire 1 | . . . 1 . . . Trap . | . . . . . . . Miscellaneous . | . . . . . . . Route ------- -11/Junkyard -10/Materials (discovered 4 exits: *Mat x3 / *Min) -10/Mines (discovered 2 exits: *Mat / *Exi) -10/Exiles (discovered 2 exits: *Min x2) -9/Mines (discovered 2 exits: *Mat x2) -8/Materials (discovered 3 exits: *Fac x3) -7/Factory (discovered 1 exit: [*Fac]) History --------- Turn | Location | Event 21 | -11/Junkyard | Discovered new exit (range 16) 138 | -11/Junkyard | Entered Materials 300 | -10/Materials | Build established: Mutant 390 | -10/Materials | Identified exit to Materials 390 | -10/Materials | Identified exit to Mines 513 | -10/Materials | Entered Mines 514 | -10/Mines | Assembled infested the area 556 | -10/Mines | Met 8R-AWN 672 | -10/Mines | Discovered exit to Materials (range 12) 686 | -10/Mines | Discovered new exit (range 5) 690 | -10/Mines | Identified exit to Exiles 691 | -10/Mines | Entered Exiles 714 | -10/Exiles | Discovered new exit (range 15) 731 | -10/Exiles | Identified exit to Mines 760 | -10/Exiles | Welcomed by 8R-AWN 777 | -10/Exiles | Met EX-HEX 833 | -10/Exiles | Met EX-DEC 869 | -10/Exiles | Visited The Gauntlet 1097 | -10/Exiles | Discovered exit to Mines (range 14) 1201 | -10/Exiles | Met EX-BIN 1218 | -10/Exiles | Aligned with FarCom system 1219 | -10/Exiles | Given EX-Vault access code 1282 | -10/Exiles | Opened EX-Vault 1292 | -10/Exiles | Found Prototype Special Weapon 1293 | -10/Exiles | Identified Field Lobotomy Kit 1315 | -10/Exiles | Warned to stay clear of 0b10 Research branches 1346 | -10/Exiles | Learned about 8R-AWN's background 1376 | -10/Exiles | Left Exiles lab with Field Lobotomy Kit 1376 | -10/Exiles | Entered Mines 1386 | -9/Mines | Escorted by a lone wolf Derelict 1396 | -9/Mines | Met a Derelict bent on vengeance 1413 | -9/Mines | Learned location of Storage (-7) 1413 | -9/Mines | Received a Rocket Launcher from a helpful Derelict 1443 | -9/Mines | Discovered new exit (range 8) 1448 | -9/Mines | Identified exit to Materials 1497 | -9/Mines | A weapon hastily lodged in a ceiling crevice suddenly fell to the ground 1821 | -9/Mines | Discovered exit to Materials (range 15) 1999 | -9/Mines | Joined a pair of Derelicts in attacking an 0b10 outpost 2048 | -9/Mines | Entered Materials 2048 | -8/Materials | Evolved 4 slots: Propulsion x2, Utility x2 2334 | -8/Materials | Identified exit to Factory 2371 | -8/Materials | Build established: Scavenger-Mutant 2870 | -8/Materials | Garrison activated, responded to threat 3131 | -8/Materials | Crushed by falling debris 3132 | -8/Materials | System corruption reached 10% 3307 | -8/Materials | Core integrity fell below 50% 3426 | -8/Materials | Build established: Mutant 3516 | -8/Materials | Crushed by falling debris 3648 | -8/Materials | First assault squad dispatched 3655 | -8/Materials | Entered Factory 3655 | -7/Factory | Evolved 2 slots: Power x1, Utility x1 3715 | -7/Factory | Repaired Aerolev Unit 5151 | -7/Factory | Garrison activated, responded to threat 5242 | -7/Factory | Lost 3 parts (1p2n) 5257 | -7/Factory | Crushed by falling debris 5258 | -7/Factory | System corruption reached 10% 5288 | -7/Factory | Lost 3 parts (1p1u1w) 5594 | -7/Factory | Fabricated Adv. Cooling System (x1) 5799 | -7/Factory | Released all parts (7) 5852 | -7/Factory | Core integrity fell below 50% 6094 | -7/Factory | Core integrity fell below 20% 6104 | -7/Factory | Discovered new exit (range 9) 6104 | -7/Factory | Destroyed by H-61 Shepherd with Heavy Assault Cannon Last Messages --------------- 06032_ Field strength at 14. 06032_ K-01 Serf collects debris. 06033_ Field strength at 5. 06034_ Stasis field depleted. 06035_ K-01 Serf cleans the Matter Pump. 06038_ U-05 Engineer lays Concrete. 06038_ K-01 Serf cleans the Matter Pump. 06048_ Gravmag System destroyed. 06052_ Acquired System Shield. 06056_ K|C SBTG9ZP5CR I>PITPFPRPL#ITUMSCS6 06061_ Acquired Hardlight Generator. 06076_ System corrupted: Energy discharge (-2). 06086_ Dropped Hardlight Generator. 06097_ Slammed into K-01 Serf. 06099_ System corrupted: Component data lost. 06103_ ALERT: Suspicious intruders detected, dispatching Cutter reinforcements to area. 06104_ EXIT=FOUND 06104_ C-17 Slicer knocked back. 06104_ Penetrated by Slug. Map ----- +----------------------------------------------------+ | ????????????????????????????????????????????????? | | ????????????????????????????????????????????????? | | ????????????????????????????????????????????????? | | ????????????????????????????????????????????????? | | ????????????????????????????????????????????????? | | ######??????????????????????????????????????????? | | #??????????????????????????????????????????? | | ! #??????????????????????????????????????????? | | #??????????????????????????????????????????? | | #??????????????????????????????????????????? | | #??????????????????????????????????????????? | | #??????????????????????????????????????????? | | #??????????????????????????????????????????? | | #??????????????????????????????????????????? | | #??????????????????????????????????????????? | | #+#########################???####??????????????? | | ?? #??????????????? | | ? #??????????????? | | cH #??????????????? | | cc #??????????????? | | g ???????????????? | | #+############g#######????? #????????????????? | | ! #?# lg #????? #????????????????? | | """"" #?# #???? #????????????????? | | """"" #?# ##### #????????????????? | | """ #?# k @ #????????????????? | | !#?# """ ##### #????????????????? | | "" #?# """"" #????% #????????????????? | | """ #?# """"" #????? #????????????????? | | S" #?# #????? #????????????????? | | #?# """ #?????? #????????????????? | | #######?# """"" #?????? +????????????????? | | ????????# """"" +??????? #????????????????? | | ????????# ??? #??????? #????????????????? | | ????????#?????########???????? #????????????????? | | ?????????????????????????????? #????????????????? | | ???????????????????????????????#????????????????? | | ????????????????????????????????????????????????? | | ????????????????????????????????????????????????? | | ????????????????????????????????????????????????? | | ????????????????????????????????????????????????? | | ????????????????????????????????????????????????? | | ????????????????????????????????????????????????? | | ????????????????????????????????????????????????? | | ????????????????????????????????????????????????? | | ????????????????????????????????????????????????? | | ????????????????????????????????????????????????? | | ????????????????????????????????????????????????? | | ????????????????????????????????????????????????? | | ????????????????????????????????????????????????? | +----------------------------------------------------+ Best States ------------- Heat Dissipation 65 Energy Generation 26 Energy Capacity 450 Matter Stores 300 Matter Capacity 300 Sight Range 20 Terrain Scan Density 10 Additional Mass Support 6 Base Temperature (-) 100 Armor Coverage 225 Propulsion Shielding 66 Utility Shielding 33 Evasion (%) 56 Defensive Hacking 10 Item Schematics ----------------- None Robot Schematics ------------------ None Fabricated ------------ Adv. Cooling System | x1 | -7/Factory | Preloaded Alien Tech Used ----------------- None Achievements -------------- It Was An Accident, I Swear Challenges ------------ None Game ------ Seed SmartbombEtherialCompactor Manual? 0 Play Time 01:59:18 Cumulative 23.7 hours Start 2024.01.30 @ 13:43:24 End 2024.01.30 @ 15:57:39 Sessions 1 Manual Loads 0 Difficulty Rogue Special Mode None Game No. 12 Rogue 12 Adventurer 0 Explorer 0 Win Type - Total 0 Types 0/0/0/0/0/0/0/0/0 Lore% 14 Gallery% 18 Achievement% 17 Wizard Run 0 Options --------- ASCII 0 Keyboard 1 Movement Vi Keybinds 0 Fullscreen 1 Font 18/Terminus Map View 76x50 Tactical HUD 1 Map Filters NONE Filters NONE Steam 1 RUN: b937e4de-398f-4ef0-8a0a-56367070f467